Cogmind - Beta 9.4 @@@ ROGUE MODE // 2020.03.13 @ 01:14:07 Player: Sudoku Result: Destroyed by G-47 Trooper with Particle Gun Performance ------------- Evolutions (2) 1000 Regions Visited (5) 1000 Robots Destroyed (91) 455 Value Destroyed (2641) 2641 Prototype IDs (4) 80 Alien Tech Used (0) 0 Bonus (44) 44 TOTAL SCORE: 5220 Bonus ------- High Alert Combat Kills 44 Cogmind --------- Core Integrity 0/550 Matter 181/300 Energy 100/100 System Corruption 2% Temperature Cool (9) Movement Core (1250) Ox24 Location -8/Storage Parts ------- > --- POWER (1) -------- (None) > --- PROPULSION (3) --- (None) > --- UTILITY (5) ------ Improved Heat Sink Medium Storage Unit Large Storage Unit Large Storage Unit High-capacity Storage Unit > --- WEAPON (2) ------- (None) > --- INVENTORY (28) --- Light Nuclear Core Light Nuclear Core Makeshift Leg Flight Unit Flight Unit VTOL Module Cesium-ion Thruster Advanced Sensor Array Advanced Signal Interpreter Advanced Signal Interpreter Transmission Jammer Heavy Armor Plating Reflective Plating Hacking Suite Hacking Suite Hacking Suite Drone Bay (2/2) Makeshift Sword Peak State ------------ > --- POWER ------------ Light Angular Momentum Engine > --- PROPULSION ------- Titanium Leg Titanium Leg Titanium Leg > --- UTILITY ---------- Medium Storage Unit Large Storage Unit Large Storage Unit High-capacity Storage Unit Reflective Plating > --- WEAPON ----------- Beamcaster Gauss Rifle > --- INVENTORY -------- Light Deuterium Engine Light Nuclear Core Light Nuclear Core Carbon-fiber Leg Carbon-fiber Leg Carbon-fiber Leg Makeshift Leg Flight Unit Flight Unit VTOL Module Cesium-ion Thruster Improved Heat Sink Large Matter Pod Advanced Sensor Array Advanced Signal Interpreter Advanced Signal Interpreter Transmission Jammer Reflective Plating Hacking Suite Hacking Suite Hacking Suite Drone Bay Rocket Launcher Makeshift Sword [Rating: 36] Favorites ----------- Power Improved Ion Engine Engine Improved Ion Engine Propulsion Titanium Leg Leg Titanium Leg Utility Large Storage Unit Device Improved Heat Sink Storage Large Storage Unit Protection Hardened Medium Armor Plating Weapon Improved Medium Laser Energy Gun Improved Medium Laser Ballistic Gun Gauss Rifle Launcher Rocket Launcher Build | -11 -10 -9 -9 -8 -8 ------- Run | Scr Mat Mat Min Mat Sto Slots Evolved 4 | . . 2 . 2 . Power . | . . . . . . Propulsion 1 | . . 1 . . . Utility 3 | . . 1 . 2 . Weapon . | . . . . . . Parts Attached 63 | 7 11 14 . 10 21 Power 7 | 1 . 2 . 2 2 Engine 7 | 1 . 2 . 2 2 Core . | . . . . . . Reactor . | . . . . . . Propulsion 19 | 2 4 5 . . 8 Treads . | . . . . . . Leg 19 | 2 4 5 . . 8 Wheel . | . . . . . . Hover . | . . . . . . Flight . | . . . . . . Utility 12 | 2 4 1 . 3 2 Device 2 | 1 . . . . 1 Storage 7 | 1 4 1 . 1 . Processor . | . . . . . . Hackware . | . . . . . . Protection 3 | . . . . 2 1 Artifact . | . . . . . . Weapon 25 | 2 3 6 . 5 9 Energy Gun 22 | 2 3 6 . 5 6 Energy Cannon . | . . . . . . Ballistic Gun 1 | . . . . . 1 Ballistic Cannon . | . . . . . . Launcher 2 | . . . . . 2 Special Weapon . | . . . . . . Impact Weapon . | . . . . . . Slashing Weapon . | . . . . . . Piercing Weapon . | . . . . . . Special Melee Weapon . | . . . . . . Unidentified Prototypes 4 | . 1 1 . . 2 Parts Lost 23 | . . 2 . 2 19 Power 4 | . . . . 1 3 Propulsion 8 | . . . . . 8 Utility 1 | . . . . . 1 Weapon 10 | . . 2 . 1 7 Highest Loss Streak 7 | . . 1 . 1 7 Average Slot Usage (%) 98 | . 98 99 100 100 94 Engine 11 | . 14 11 11 9 8 Leg 28 | . 27 33 33 27 23 Storage 32 | . 26 33 33 36 36 Protection 2 | . . . . 9 6 Energy Gun 21 | . 27 21 22 18 13 Naked Turns . | . . . . . . Heaviest Build 95 | 13 59 77 77 93 95 Greatest Support 51 | 20 26 51 51 51 51 Greatest Overweight (x) 24 | . 2 1 1 1 24 Average Overweight (x) 1 | . 1 1 1 1 1 Largest Inventory Capacity 28 | 6 18 24 24 28 28 Average Capacity 22 | 5 16 23 24 27 28 Most Carried 28 | 6 18 24 24 28 28 Average Carried 21 | 4 16 23 23 26 24 Final Capacity 28 | 6 18 24 24 28 28 Final Carried 28 | 6 18 23 24 28 19 Class Distribution -------------------- 67% | Hauler-Mutant 32% | Mutant Dominant Class ---------------- Mutant | -10/Materials Hauler-Mutant | -9/Materials Hauler-Mutant | -9/Mines Hauler-Mutant | -8/Materials Hauler-Mutant | -8/Storage Resources | -11 -10 -9 -9 -8 -8 ----------- Run | Scr Mat Mat Min Mat Sto Matter Collected 1199 | 270 260 140 . 95 434 Remotely 20 | 20 . . . . . Salvage Created 3486 | 119 409 898 148 710 1202 Parts 191 | 5 38 50 10 32 56 Haulers Intercepted 9 | . 1 4 . 1 3 Recyclers Shooed 3 | . . . . 1 2 Parts Field Recycled . | . . . . . . Retrieved Matter . | . . . . . . Parts Self-Destructed . | . . . . . . Prevented . | . . . . . . Kills | -11 -10 -9 -9 -8 -8 ------- Run | Scr Mat Mat Min Mat Sto Combat Hostiles Destroyed 58 | . 7 14 5 10 22 Guns 38 | . 7 13 3 8 7 AOE 19 | . . . 2 2 15 Classes Destroyed 10 | 2 5 2 . . 1 Worker 8 | 2 2 . . . 4 Hauler 9 | . 1 4 . 1 3 Recycler 4 | 1 . . . 1 2 Operator 6 | . 3 1 . 1 1 Watcher 6 | . 2 2 . 1 1 Swarmer 7 | . 3 . 3 . 1 Grunt 41 | . 4 11 2 8 16 Duelist 2 | . . 1 . 1 . Sentry 7 | . . 2 . 1 4 Hunter 1 | . . . . . 1 Best Kill Streak 13 | 2 3 6 3 7 13 Combat Bots Only 6 | . 2 6 3 4 5 Max Kills in Single Turn 3 | 1 2 2 2 1 3 Gunslinging 1 | . . 1 . . . Exploded 2 | . . . 2 1 2 Melee . | . . . . . . Uniques/NPCs Destroyed . | . . . . . . Combat | -11 -10 -9 -9 -8 -8 -------- Run | Scr Mat Mat Min Mat Sto Damage Taken 4822 | . 138 786 181 561 3156 Core 767 | . 27 170 17 26 527 Absorbed by Shields . | . . . . . . Core Remaining (%) 80 | 100 89 . 53 . . Volleys Fired 166 | 3 26 36 9 24 68 Largest 2 | 1 2 2 2 2 2 Hottest 120 | 40 112 112 90 90 120 Shots Fired 326 | 3 52 72 18 48 133 Gun 300 | 3 52 72 18 48 107 Cannon . | . . . . . . Launcher 26 | . . . . . 26 Special . | . . . . . . Kinetic 33 | . . . . . 33 Thermal 148 | . 52 70 . . 26 Explosive 26 | . . . . . 26 Electromagnetic 119 | 3 . 2 18 48 48 Robot Hit Streak 11 | 3 9 11 9 11 11 Robot Miss Streak 7 | . 5 2 3 6 7 Penetration Max 1 | . . . . . 1 Secondary Targets 8 | . 1 5 . . 2 Max Gunslinging Chain 1 | . 1 1 . . 1 Shots Hit Robots 222 | 3 25 54 14 34 92 Core Hits 156 | 3 15 27 8 32 71 Critical Hits 5 | . . . . 1 4 Critical Kills 2 | . . . . . 2 Critical Parts Destroyed 3 | . . . . 1 2 Melee Attacks . | . . . . . . Impact . | . . . . . . Slashing . | . . . . . . Piercing . | . . . . . . Sneak Attacks . | . . . . . . Combat Hostiles . | . . . . . . Follow-up Attacks . | . . . . . . Damage Inflicted 6323 | 43 502 902 293 1065 3518 Guns 3670 | 43 502 902 175 544 1504 Cannons . | . . . . . . Explosions 2652 | . . . 118 521 2013 Melee . | . . . . . . Ramming 1 | . . . . . 1 Kinetic 431 | . . . . . 431 Thermal 2923 | . 502 867 118 521 915 Explosive 1433 | . . . . . 1433 Electromagnetic 1535 | 43 . 35 175 544 738 Impact . | . . . . . . Slashing . | . . . . . . Piercing . | . . . . . . Highest Corruption 2 | . . 1 1 . 2 Average Corruption 1 | . . 1 1 . 2 Corruption Purged . | . . . . . . Effects 8 | . . 1 4 . 3 Message Errors 2 | . . . 1 . 1 Energy Discharges 2 | . . . 1 . 1 Data Loss (minor) 3 | . . 1 2 . . Targeting Errors 1 | . . . . . 1 Overload Shots . | . . . . . . Overflow Damage 97 | . . . . . 97 Projectiles . | . . . . . . Explosions 97 | . . . . . 97 Melee . | . . . . . . Knockbacks . | . . . . . . Impact . | . . . . . . Kinetic . | . . . . . . Secondary . | . . . . . . Self-Inflicted Damage 494 | . . . 61 164 269 Shots 16 | . . . 2 5 9 Rammed 1 | . . . . . 1 Targets Rammed 1 | . . . . . 1 Kicked . | . . . . . . Crushed . | . . . . . . Highest Temperature 516 | . 306 516 99 216 423 Average Temperature 130 | . 73 159 49 104 167 Received Heat Transfer 2013 | . 24 327 51 234 1377 Effects 18 | . 3 5 . . 10 Shutdowns 2 | . . . . . 2 Energy Bleed 5 | . . 3 . . 2 Interference 2 | . 2 . . . . Matter Decay 2 | . 1 . . . 1 Short Circuit 1 | . . 1 . . . Damage (minor) 1 | . . . . . 1 Damage (major) 4 | . . . . . 4 Damage (core) 1 | . . 1 . . . Siege Activations . | . . . . . . Robots Corrupted . | . . . . . . Combat Hostiles . | . . . . . . Parts Fried 3 | 1 . . 1 1 . Impact Corruptions . | . . . . . . Robots Melted 1 | . . 1 . . . Combat Hostiles 1 | . . 1 . . . Parts Melted 7 | . 1 5 . . 1 Heat Transferred 4839 | . 1110 1887 100 500 1242 Parts Sabotaged . | . . . . . . Parts Stolen . | . . . . . . Parts Stripped . | . . . . . . Power Chain Reactions 15 | . . . 2 7 6 Missiles Intercepted . | . . . . . . Alert | -11 -10 -9 -9 -8 -8 ------- Run | Scr Mat Mat Min Mat Sto Peak Influence 523 | 15 132 324 164 298 523 Average Influence 97 | 5 56 80 66 85 234 Maximum Alert Level 2 | . . 1 . 1 2 Low Security (%) 87 | 100 100 92 100 93 41 Level 1 9 | . . 7 . 6 39 Level 2 3 | . . . . . 19 Level 3 . | . . . . . . Level 4 . | . . . . . . Level 5 . | . . . . . . High Security . | . . . . . . Max Security . | . . . . . . Squads Dispatched 11 | . 5 1 . 1 4 Investigation 3 | . 2 . . . 1 Extermination . | . . . . . . Reinforcement 7 | . 3 1 . 1 2 Assault . | . . . . . . Garrison 1 | . . . . . 1 Intercept . | . . . . . . Construction Impeded 1 | . . . . . 1 Haulers Reinforced . | . . . . . . Stealth | -11 -10 -9 -9 -8 -8 --------- Run | Scr Mat Mat Min Mat Sto Distress Signals 4 | . . . . 1 3 Communications Jammed . | . . . . . . Distress Signals . | . . . . . . Times Spotted 93 | . 14 21 5 14 39 Peak Tracking Total 7 | . 3 5 3 4 7 Tactical Retreats 7 | . 1 1 . 2 3 Traps | -11 -10 -9 -9 -8 -8 ------- Run | Scr Mat Mat Min Mat Sto Traps Triggered 4 | . 2 1 . . 1 Indirectly . | . . . . . . Trap Hack Attempts . | . . . . . . Triggered . | . . . . . . Disarmed . | . . . . . . Reprogrammed 3 | . 3 . . . . Reused . | . . . . . . Traps Extracted . | . . . . . . Installed . | . . . . . . Triggered . | . . . . . . Machines | -11 -10 -9 -9 -8 -8 ---------- Run | Scr Mat Mat Min Mat Sto Machines Disabled 8 | . . 2 . 2 4 Max in Single Turn 1 | . . 1 . 1 1 Machines Sabotaged . | . . . . . . Garrisons Compromised . | . . . . . . Overloaded Fab Kills . | . . . . . . Fab Network Shutdowns . | . . . . . . Hacking | -11 -10 -9 -9 -8 -8 --------- Run | Scr Mat Mat Min Mat Sto Machines Accessed 25 | . 7 8 . 5 5 Terminals 19 | . 5 6 . 3 5 Fabricators . | . . . . . . Repair Stations 2 | . 1 1 . . . Recycling Units 3 | . 1 1 . 1 . Scanalyzers 1 | . . . . 1 . Garrison Access . | . . . . . . Total Hacks 83 | . 20 27 . 25 11 Successful 44 | . 11 15 . 14 4 Failed 39 | . 9 12 . 11 7 Catastrophic 2 | . 1 1 . . . Database Lockouts . | . . . . . . Manual 42 | . 6 15 . 16 5 Terminals 66 | . 14 22 . 19 11 Fabricators . | . . . . . . Repair Stations 7 | . 5 2 . . . Recycling Units 8 | . 1 3 . 4 . Scanalyzers 2 | . . . . 2 . Garrison Access . | . . . . . . Terminal Hacks 19 | . 3 6 . 8 2 Record 1 | . 1 . . . . Robot Analysis 1 | . . 1 . . . Open Door 1 | . . . . . 1 Emergency Access Points 2 | . . 1 . 1 . Terminal Index 2 | . . 1 . 1 . Unreport Threat 3 | . . 2 . 1 . Locate Traps 3 | . 1 . . 2 . Reprogram Traps 1 | . 1 . . . . Recall Reinforcements 1 | . . . . 1 . Zone Layout 4 | . . 1 . 2 1 Fabricator Hacks . | . . . . . . Repair Station Hacks 7 | . 5 2 . . . Scan Component 4 | . 3 1 . . . Repair 3 | . 2 1 . . . Recycling Unit Hacks 2 | . . 1 . 1 . Report Inventory 1 | . . . . 1 . Retrieve Components 1 | . . 1 . . . Scanalyzer 2 | . . . . 2 . Insert Component 1 | . . . . 1 . Analyze 1 | . . . . 1 . Garrison Access Hacks . | . . . . . . Unauthorized Hacks 36 | . 8 12 . 9 7 Terminals 12 | . 3 5 . 2 2 Track 9 | . 2 4 . 1 2 Operators 3 | . 1 1 . 1 . Fabricators . | . . . . . . Repair Stations . | . . . . . . Recycling Units 2 | . . 1 . 1 . Recyclers 2 | . . 1 . 1 . Scanalyzers . | . . . . . . Garrison Access . | . . . . . . Data Cores Recovered . | . . . . . . Used . | . . . . . . Hacking Detections 23 | . 7 8 . 4 4 Full Trace Events 1 | . . . . . 1 Feedback Events . | . . . . . . Feedback Blocked . | . . . . . . Robot Schematics Acquired . | . . . . . . Robots Built . | . . . . . . Matter . | . . . . . . Time . | . . . . . . Total Robot Build Rating . | . . . . . . Part Schematics Acquired 1 | . . . . 1 . Parts Built . | . . . . . . Matter . | . . . . . . Time . | . . . . . . Total Part Build Rating . | . . . . . . Parts Repaired 3 | . 2 1 . . . Time 134 | . 83 51 . . . Parts Recycled . | . . . . . . Recycled Matter . | . . . . . . Retrieved Matter . | . . . . . . Retrieved Components 4 | . . 4 . . . Parts Scanalyzed 1 | . . . . 1 . Part Schematics Acquired 1 | . . . . 1 . Parts Damaged . | . . . . . . Bothacking | -11 -10 -9 -9 -8 -8 ------------ Run | Scr Mat Mat Min Mat Sto Used RIF Installer . | . . . . . . Robots Hacked . | . . . . . . Non-combat . | . . . . . . Combat . | . . . . . . Robot Hacks Applied . | . . . . . . Relay Couplers Released . | . . . . . . Robots Rewired . | . . . . . . Allies Hacked . | . . . . . . Hacks Repelled . | . . . . . . Allies | -11 -10 -9 -9 -8 -8 -------- Run | Scr Mat Mat Min Mat Sto Total Allies 2 | . . . 2 . . Largest Group 2 | . . . 2 2 . Highest-Rated Group 38 | . . . 38 38 . Highest-Rated Ally 31 | . . . 31 31 . Total Orders . | . . . . . . Ally Attacks 2 | . . . . 2 . Total Damage 20 | . . . . 20 . Kills . | . . . . . . Allies Corrupted . | . . . . . . Allies Melted . | . . . . . . Intel | -11 -10 -9 -9 -8 -8 ------- Run | Scr Mat Mat Min Mat Sto Robot Analysis Total 1 | . . 1 . . . Derelict Logs Recovered . | . . . . . . Drone Launches . | . . . . . . Drone Recoveries . | . . . . . . Exploration | -11 -10 -9 -9 -8 -8 ------------- Run | Scr Mat Mat Min Mat Sto Turns Passed 4359 | 114 1322 868 661 619 775 Spaces Moved 2093 | 61 629 401 387 317 298 Core 6 | 5 . . . . 1 Treads . | . . . . . . Legs 2087 | 56 629 401 387 317 297 Wheels . | . . . . . . Hover . | . . . . . . Flight . | . . . . . . Fastest Speed 50 | 50 120 150 160 160 150 Average Speed 161 | 114 168 155 160 160 168 Slowest Speed 1250 | 120 180 160 160 160 1250 Overloaded Moves . | . . . . . . Propulsion Burnouts . | . . . . . . Robots Hopped . | . . . . . . Cave-ins Triggered . | . . . . . . Exploration Rate (%) 47 | 5 94 32 68 24 63 Regions Visited 5 Branch Regions 2 Pre-discovered Areas . | . . . . . . Known Exits Taken . | . . . . . . Unknown Exits Taken 5 | 1 1 1 1 1 . Scrap Searched . | . . . . . . Spaces Dug . | . . . . . . Terrain Destroyed 175 | . . . 11 14 150 Melee . | . . . . . . Projectile 13 | . . . . . 13 AOE 162 | . . . 11 14 137 Actions | -11 -10 -9 -9 -8 -8 --------- Run | Scr Mat Mat Min Mat Sto Total 2755 | 102 844 579 412 380 438 Wait 294 | 19 135 84 12 14 30 Move 2088 | 60 628 400 386 316 298 Hop . | . . . . . . Pick Up 89 | 13 25 26 3 12 10 Fast Attach 9 | . 7 2 . . . Attach 30 | 7 . 5 . 4 14 Detach . | . . . . . . Swap 24 | . 4 7 . 6 7 Drop 54 | . 19 19 2 4 10 Fire 166 | 3 26 36 9 24 68 Melee . | . . . . . . Ram 1 | . . . . . 1 Kick . | . . . . . . Crush . | . . . . . . Escape Stasis . | . . . . . . Rewire . | . . . . . . Trap . | . . . . . . Miscellaneous . | . . . . . . Route ------- -11/Scrapyard -10/Materials (discovered 4 exits: *Mat x3 / [*Min]) -9/Materials (discovered 2 exits: [*Min x2]) -9/Mines -8/Materials -8/Storage History --------- Turn | Location | Event 5 | -11/Scrapyard | Discovered new exit (range 15) 115 | -11/Scrapyard | Entered Materials 308 | -10/Materials | Build established: Mutant 630 | -10/Materials | Discovered new exit (range 16) 720 | -10/Materials | Discovered new exit (range 7) 870 | -10/Materials | Repaired Imp. Aluminum Leg 922 | -10/Materials | Repaired Imp. Medium Laser 1076 | -10/Materials | Discovered new exit (range 16) 1381 | -10/Materials | Discovered new exit (range 16) 1437 | -10/Materials | Entered another Materials area 1437 | -9/Materials | Evolved 2 slots: Propulsion x1, Utility x1 1574 | -9/Materials | Discovered new exit (range 15) 1724 | -9/Materials | Build established: Hauler-Mutant 1971 | -9/Materials | Repaired Imp. Medium Laser 2190 | -9/Materials | Discovered new exit (range 6) 2305 | -9/Materials | Entered Mines 2446 | -9/Mines | Found a hidden stash of uninstalled traps 2491 | -9/Mines | A weapon hastily lodged in a ceiling crevice suddenly fell to the ground 2786 | -9/Mines | Discovered new exit (range 6) 2966 | -9/Mines | Entered Materials 2966 | -8/Materials | Accompanied by 2 allies 2966 | -8/Materials | Evolved 2 slots: Utility x2 2968 | -8/Materials | Discovered new exit (range 5) 2971 | -8/Materials | Led the pair of lost Derelicts to an unsafe place 3585 | -8/Materials | Entered Storage 4118 | -8/Storage | Garrison activated, responded to threat 4164 | -8/Storage | Lost 7 parts (2p2n1u2w) 4242 | -8/Storage | Lost 3 parts (2n1w) 4324 | -8/Storage | Core integrity fell below 50% 4354 | -8/Storage | Core integrity fell below 20% 4360 | -8/Storage | Destroyed by G-47 Trooper with Particle Gun Last Messages --------------- 04340_ K-01 Serf collects debris. 04341_ C-30 ARC bursts open, deploying its payload. 04341_ S-10 Pest unfolds itself. 04343_ U-05 Engineer lays Concrete. 04344_ Carbon-fiber Leg destroyed. 04344_ U-05 Engineer lays Concrete. 04344_ Slammed into Y-45 Defender. 04345_ U-05 Engineer builds a Wall. 04345_ K-01 Serf collects debris. 04345_ S-10 Pest destroyed. 04347_ K-01 Serf collects debris. 04350_ U-05 Engineer lays Concrete. 04351_ K-01 Serf collects debris. 04352_ U-05 Engineer builds a Wall. 04353_ K-01 Serf collects debris. 04356_ U-05 Engineer lays Concrete. 04357_ Acquired 7 matter. 04357_ U-05 Engineer lays Concrete. 04358_ K-01 Serf collects debris. 04358_ U-05 Engineer builds a Wall. Map ----- +----------------------------------------------------+ | ##### #???????????????????????????????? | | " !"" %u* #???????????????????????????????? | | "=! ! =##### #???????????????????????????????? | | "[![%" #???# #???????????????????????????????? | | """""" #???# ######??????????????????????????? | | #???# # % # ???????????????????????? | | k #???# # # ????????????????????? | | %k #???# # ## #??????????????????? | | #########???# # # ##?????????????????? | | "###????????### # # ##????????????????? | | !!#??????????# # ?????????????????? | | ! #??????????# # # #a= ##????????????????? | | !!!#??????????# # #%%[# ###???????????????? | | ####???##??##?# #! # = # #???????????????? | | ?????### ### ## # % # #????????????????? | | ?????# # # # # #????????????????? | | ?????# # #! # #????????????????? | | ?????# # # # ## # # ####??????????????? | | ????## # "% # ####??????????????? | | ???#"" " ! / " [ + " ##??????????????? | | ???#"T " = # # ####??????????????? | | ???#"" " a = ### ## # ####??????????????? | | ????## " #k u###?????????????????? | | ?????# # # ss ##??????????????????? | | ?????####"T" # k " # #??????????????????? | | ????????#"""### # "" Y@ #??????????????????? | | ????????####??# + """ #??????????????????? | | ??????????????# # """ #??????????????????? | | ???????????#### # """# g ##?????????????????? | | ???????????#""" + #g ""#?????????????????? | | ???????????#"Y # # T"#?????????????????? | | ???????????#""" # # "####??????????????? | | ???????????#### # # ######??????????????? | | ??????????????# # # Y## !##??????????????? | | ?????????????## ### ### ## !##??????????????? | | #???????????? # #?###?# ##!!##??????????????? | | #???????????? # #?????# ## "##??????????????? | | #???????????? # #?????# ; T#??????????????? | | #???????????? # #?????# # ##??????????????? | | #???????????? + #?????# ######??????????????? | | ????????????? # #????## ######??????????????? | | ????????????? #####????# #??????????????????? | | ????????????? #????????# #??????????????????? | | ????????????? #????????# T #??????????????????? | | ?????????????##????????# #??????????????????? | | ?????????????#?????????# #??????????????????? | | ???????????????????#######+#######??????????????? | | ???????????????????# #??????????????? | | ???????????????????# """" """" #??????????????? | | ???????????????????#= """" """" ???????????????? | +----------------------------------------------------+ Best States ------------- Heat Dissipation 45 Energy Generation 18 Energy Capacity 265 Matter Stores 300 Matter Capacity 300 Sight Range 16 Terrain Scan Density 10 Armor Coverage 225 Resistance: TH 10 Evasion (%) 40 Item Schematics ----------------- Hacking Suite | -8/Materials | Scanalyzed Robot Schematics ------------------ None Fabricated ------------ Nothing Alien Tech Used ----------------- None Achievements -------------- It's Just You Challenges ------------ None Game ------ Seed SegregatorTractorRail Manual? 0 Play Time 01:23:44 Cumulative 47.5 hours Start 2020.03.12 @ 14:25:46 End 2020.03.13 @ 01:14:07 Sessions 2 Manual Loads 0 Difficulty Rogue Special Mode None Game No. 31 Rogue 31 Adventurer 0 Explorer 0 Win Type - Total 0 Types 0/0/0/0/0/0/0 Lore% 15 Gallery% 27 Achievement% 17 Wizard Run 0 Options --------- ASCII 0 Keyboard 0 Movement Mouse Keybinds 0 Fullscreen 0 Font 16/SmallcapsGlow Map View 76x50 Tactical HUD 1 Map Filters NONE Filters NONE Steam 1 RUN: b16a749c-dc41-40bd-91e6-df4e554d9e7f